Cogmind - Beta 15 @@@ ROGUE MODE // 2025.05.15 @ 19:31:06 Player: Ciaphas Result: Destroyed by G-47 Trooper with Particle Gun Performance ------------- Evolutions (3) 1500 Regions Visited (6) 1200 Robots Destroyed (79) 395 Value Destroyed (1936) 1936 Prototype IDs (30) 600 Alien Tech Used (0) 0 Bonus (300) 300 TOTAL SCORE: 5931 Bonus ------- Aligned with FarCom 300 Cogmind --------- Core Integrity 0/700 Matter 288/300 Energy 160/160 System Corruption 5% Temperature Warm (179) Movement Treading (160) Location -7/Factory Parts ------- > --- POWER (1) -------- Light Nuclear Core > --- PROPULSION (4) --- Light Treads Light Treads Xenon Bombardment Thruster > --- UTILITY (6) ------ Improved Heat Sink Medium Storage Unit 0b10 Alert Chip Hacking Suite > --- WEAPON (2) ------- Gatling Laser Gatling Laser > --- INVENTORY (10) --- Light Nuclear Core Huge Storage Unit Compact Battery (200) Compact Matter Pod (150) Transmission Jammer Hacking Suite Hacking Suite Heavy Particle Gun Remote Datajack Peak State ------------ > --- POWER ------------ Micro Nuclear Core > --- PROPULSION ------- Aerolev Unit Aerolev Unit Aerolev Unit Aerolev Unit > --- UTILITY ---------- Medium Storage Unit Structural Scanner 0b10 Alert Chip Improved Medium Armor Plating Hacking Suite Hacking Suite > --- WEAPON ----------- Precision Grenade Launcher Heavy Flail > --- INVENTORY -------- Light Nuclear Core Light Nuclear Core Aerolev Unit Hacking Suite Hacking Suite Heavy Particle Gun Rocket Launcher Remote Datajack Mining Claw [Rating: 48] Favorites ----------- Power Light Ion Engine Engine Light Ion Engine Power Core Micro Nuclear Core Propulsion Light Treads Treads Light Treads Leg Improved Titanium Leg Hover Unit Aerolev Unit Flight Unit Xenon Bombardment Thruster Utility Hacking Suite Device Structural Scanner Storage Medium Storage Unit Processor 0b10 Alert Chip Hackware Hacking Suite Protection Improved Medium Armor Plating Weapon Improved Light Cannon Energy Gun Gatling Laser Ballistic Gun High-powered Shotgun Ballistic Cannon Improved Light Cannon Launcher Rocket Launcher Impact Weapon Heavy Flail Slashing Weapon Mining Claw Build | -11 -10 -10 -10 -9 -8 -7 ------- Run | Yrd Mat Min Exi Min Mat Fac Slots Evolved 6 | . . . . . 4 2 Power . | . . . . . . . Propulsion 2 | . . . . . 1 1 Utility 4 | . . . . . 3 1 Weapon . | . . . . . . . Parts Attached 62 | 1 11 . 1 4 21 24 Power 5 | . . . . 1 2 2 Engine 2 | . . . . 1 1 . Core 3 | . . . . . 1 2 Reactor . | . . . . . . . Propulsion 21 | . 3 . . . 7 11 Treads 11 | . 3 . . . 5 3 Leg 1 | . . . . . . 1 Wheel . | . . . . . . . Hover 7 | . . . . . 1 6 Flight 2 | . . . . . 1 1 Utility 22 | . 5 . 1 3 6 7 Device 5 | . 1 . . 1 1 2 Storage 8 | . 4 . 1 1 1 1 Processor 2 | . . . . 1 1 . Hackware 2 | . . . . . . 2 Protection 5 | . . . . . 3 2 Artifact . | . . . . . . . Weapon 14 | 1 3 . . . 6 4 Energy Gun 3 | . . . . . 1 2 Energy Cannon . | . . . . . . . Ballistic Gun 2 | 1 . . . . 1 . Ballistic Cannon 3 | . 2 . . . 1 . Launcher 3 | . 1 . . . 1 1 Special Weapon . | . . . . . . . Impact Weapon 2 | . . . . . 1 1 Slashing Weapon 1 | . . . . . 1 . Piercing Weapon . | . . . . . . . Special Melee Weapon . | . . . . . . . Unidentified Prototypes 5 | . . . . 1 3 1 Parts Lost 15 | . . . . . . 15 Power 1 | . . . . . . 1 Propulsion 8 | . . . . . . 8 Utility 4 | . . . . . . 4 Weapon 2 | . . . . . . 2 Highest Loss Streak 4 | . . . . . . 4 To Critical Strikes 1 | . . . . . . 1 Average Backups 12 | 3 8 11 12 15 18 8 Power 1 | 1 1 1 1 1 1 1 Propulsion 3 | 2 3 4 4 4 6 . Utility 3 | . . 2 2 5 5 3 Weapon 3 | . 3 4 5 5 4 1 Tool/Special . | . . . . . . . Unused Backups 31 | 9 4 . . 1 6 11 Power 3 | 1 . . . . 1 1 Propulsion 8 | 4 2 . . . 2 . Utility 8 | 1 . . . . 1 6 Weapon 10 | 3 2 . . 1 2 2 Tool/Special 2 | . . . . . . 2 Average Slot Usage (%) 90 | . 93 100 100 97 98 78 Engine 6 | . 14 14 14 14 6 . Core 3 | . . . . . 2 6 Treads 18 | . 26 28 28 28 26 4 Hover 5 | . . . . . . 14 Device 9 | . 8 14 14 2 17 3 Storage 10 | . 14 14 14 14 11 7 Processor 5 | . . . . 9 9 7 Hackware 4 | . . . . . . 12 Protection 3 | . . . . . 6 3 Energy Gun 1 | . . . . . 1 3 Ballistic Cannon 12 | . 25 28 28 28 11 . Impact Weapon 3 | . . . . . 1 8 Peak Build Rating 48 | 6 10 10 11 19 37 48 Average Rating 26 | 6 9 10 10 13 30 35 On Entrance 13 | 6 6 10 10 11 17 37 Naked Turns . | . . . . . . . Heaviest Build 66 | 11 32 32 32 57 66 60 Greatest Support 63 | 20 40 40 40 40 63 63 Greatest Overweight (x) 6 | . . . . 1 1 6 Average Overweight (x) . | . . . . . . . Largest Inventory Capacity 25 | 8 25 15 15 20 20 20 Average Capacity 14 | 8 12 15 15 18 20 10 Most Carried 20 | 6 11 12 14 17 20 20 Average Carried 12 | 3 8 11 12 15 18 8 Final Capacity 20 | 8 15 15 15 20 20 10 Final Carried 20 | 4 11 12 13 15 20 9 Class Distribution -------------------- 47% | Mutant 19% | Hacker-Mutant 11% | Skirmisher 7% | Hacker-Scout 5% | Scavenger-Mutant 5% | Scavenger-Assassin Dominant Class ---------------- Mutant | -10/Materials Mutant | -10/Mines Mutant | -10/Exiles Mutant | -9/Mines Mutant | -8/Materials Hacker-Mutant | -7/Factory Resources | -11 -10 -10 -10 -9 -8 -7 ----------- Run | Yrd Mat Min Exi Min Mat Fac Matter Collected 2036 | 225 181 100 . 208 526 796 Remotely . | . . . . . . . Salvage Created 2270 | 75 223 . . 124 613 1235 Parts 111 | 5 18 . . 6 39 43 Haulers Intercepted 6 | . 2 . . . 3 1 Recyclers Shooed 1 | 1 . . . . . . Parts Field Recycled 2 | . . . . . . 2 Retrieved Matter 7 | . . . . . . 7 Parts Self-Destructed . | . . . . . . . Prevented . | . . . . . . . Kills | -11 -10 -10 -10 -9 -8 -7 ------- Run | Yrd Mat Min Exi Min Mat Fac Combat Hostiles Destroyed 47 | . 5 . . 3 17 22 Melee 6 | . . . . . 1 5 Guns 7 | . . . . . 1 6 Cannons 12 | . 2 . . 3 7 . AOE 17 | . 3 . . . 7 7 Classes Destroyed 12 | 2 5 . . . 4 1 Worker 6 | . . . . . 2 4 Builder 4 | . 1 . . . 1 2 Tunneler 3 | 1 . . . . 2 . Hauler 6 | . 2 . . . 3 1 Recycler 8 | 1 1 . . 1 1 4 Operator 2 | . . . . . 1 1 Watcher 3 | . 1 . . . 1 1 Swarmer 18 | . 3 . . . 7 8 Grunt 21 | . 2 . . 3 8 8 Sentry 4 | . . . . . 1 3 Hunter 2 | . . . . . 1 1 Programmer 2 | . . . . . . 2 Best Kill Streak 6 | 2 6 . . 4 5 3 Combat Bots Only 5 | . 5 . . 3 4 3 Max Kills in Single Turn 2 | 1 2 . . 1 2 1 Gunslinging . | . . . . . . . Exploded 2 | . 2 . . . 2 1 Melee 1 | . . . . . 1 1 Uniques/NPCs Destroyed . | . . . . . . . Combat | -11 -10 -10 -10 -9 -8 -7 -------- Run | Yrd Mat Min Exi Min Mat Fac Hostile Shots Fired 508 | . 12 . . 9 93 394 Missed 177 | . 5 . . 2 29 141 Hits 331 | . 7 . . 7 64 253 Projectile 331 | . 7 . . 7 64 253 Critical Strikes 8 | . . . . . 4 4 Damage Taken 4081 | . 90 . . 89 976 2926 Core 875 | . . . . 10 161 704 Absorbed by Shields . | . . . . . . . Regen/Repaired (Parts) 69 | . . . . . . 69 Core Remaining (%) 88 | 100 . . . 96 70 . Volleys Fired 128 | 5 26 . . 7 52 38 Largest 2 | 2 2 . . 2 2 2 Hottest 160 | 60 66 . . 66 66 160 Shots Fired 213 | 10 48 . . 14 87 54 Gun 60 | 10 . . . . 15 35 Cannon 126 | . 44 . . 14 68 . Launcher 27 | . 4 . . . 4 19 Special . | . . . . . . . Kinetic 140 | 5 44 . . 14 77 . Thermal 46 | 5 . . . . 6 35 Explosive 27 | . 4 . . . 4 19 Electromagnetic . | . . . . . . . Robot Hit Streak 8 | 4 8 . . 6 8 7 Robot Miss Streak 6 | 2 2 . . 1 2 6 Penetration Max . | . . . . . . . Secondary Targets 1 | . . . . . . 1 Max Gunslinging Chain 1 | . . . . . . 1 Shots Hit Robots 176 | 6 16 . . 11 63 80 Core Hits 97 | 3 12 . . 5 34 43 Critical Kills 1 | . . . . . . 1 Critical Parts Destroyed 8 | . . . . . 1 7 Critical Strikes 12 | . . . . . 4 8 Burn 1 | . . . . . 1 . Blast 2 | . . . . . 2 . Smash 9 | . . . . . 1 8 Melee Attacks 93 | . . . . . 11 82 Impact 83 | . . . . . 10 73 Slashing 10 | . . . . . 1 9 Piercing . | . . . . . . . Sneak Attacks 12 | . . . . . 2 10 Combat Hostiles . | . . . . . . . Follow-up Attacks 5 | . . . . . . 5 Damage Inflicted 6631 | 69 560 . . 235 1972 3795 Guns 985 | 69 . . . . 211 705 Cannons 1457 | . 337 . . 234 886 . Explosions 1247 | . 220 . . . 385 642 Melee 2888 | . . . . . 445 2443 Ramming 54 | . 3 . . 1 45 5 Kinetic 1596 | 22 337 . . 234 1003 . Thermal 846 | 47 . . . . 94 705 Explosive 1247 | . 220 . . . 385 642 Electromagnetic . | . . . . . . . Impact 2646 | . . . . . 445 2201 Slashing 242 | . . . . . . 242 Piercing . | . . . . . . . Highest Corruption 5 | . 1 1 1 1 1 5 Average Corruption 2 | . 1 1 1 1 1 3 Corruption Purged . | . . . . . . . Corruption Blocked . | . . . . . . . Effects 42 | . 1 1 1 1 10 28 Message Errors 9 | . . . . 1 1 7 Matter Fused 13 | . 1 . 1 . 2 9 Heat Flow Errors 5 | . . . . . 3 2 Energy Discharges 4 | . . 1 . . . 3 Data Loss (minor) 5 | . . . . . 3 2 Data Loss (major) 1 | . . . . . . 1 Misfires 2 | . . . . . . 2 Alerts 3 | . . . . . 1 2 Overload Shots . | . . . . . . . Overflow Damage 1255 | . . . . . 149 1106 Projectiles 39 | . . . . . 12 27 Explosions 2 | . . . . . 2 . Melee 1214 | . . . . . 135 1079 Knockbacks 33 | . 5 . . 4 10 14 Impact 14 | . . . . . 2 12 Kinetic 17 | . 5 . . 4 8 . Secondary 2 | . . . . . . 2 Self-Inflicted Damage 50 | . 20 . . . . 30 Shots 2 | . 1 . . . . 1 Rammed 8 | . 1 . . 1 4 2 Targets Rammed 9 | . 1 . . 1 5 2 Kicked . | . . . . . . . Crushed 1 | . . . . . 1 . Highest Temperature 243 | 20 36 . . 93 243 236 Average Temperature 51 | 20 12 . . 48 53 76 Received Heat Transfer 1269 | . 27 . . 51 522 669 Siege Activations . | . . . . . . . Martial Activations . | . . . . . . . Shielding Activations . | . . . . . . . Robots Disrupted . | . . . . . . . Combat Hostiles . | . . . . . . . Robots Corrupted 10 | . . . . . 2 8 Combat Hostiles 4 | . . . . . 1 3 Parts Fried 13 | . . . . . 2 11 Impact Corruptions 42 | . . . . . 6 36 Robots Melted 1 | . . . . . . 1 Combat Hostiles 1 | . . . . . . 1 Parts Melted 5 | . . . . . 1 4 Heat Transferred 1909 | 100 . . . . 259 1550 Parts Sabotaged . | . . . . . . . Parts Stolen . | . . . . . . . Parts Stripped . | . . . . . . . Power Chain Reactions . | . . . . . . . Alert | -11 -10 -10 -10 -9 -8 -7 ------- Run | Yrd Mat Min Exi Min Mat Fac Maximum Alert Level 1 | . . . . . . 1 Low Security (%) 99 | 100 100 100 . 100 100 98 Level 1 . | . . . . . . 1 Level 2 . | . . . . . . . Level 3 . | . . . . . . . Level 4 . | . . . . . . . Level 5 . | . . . . . . . High Security . | . . . . . . . Max Security . | . . . . . . . Peak Influence 217 | 10 160 . . 65 108 217 Initial 21 | . . . . . 5 21 Average 42 | 1 54 . . 14 39 48 Influence Increases 1666 | 10 267 . . 75 474 840 Destroy 0b10 Robot/C 812 | . 100 . . 60 300 352 Destroy 0b10 Robot/NC 140 | 10 25 . . 5 48 52 Destroy Leader 196 | . 26 . . 10 60 100 Successful Hack 59 | . 43 . . . 3 13 Select Force Hacks 54 | . 30 . . . 24 . Disable Machine 36 | . . . . . . 36 Destroy Structure 174 | . 28 . . . 39 107 Partial Spotted 12 | . . . . . . 12 Lose Combat Pursuer 183 | . 15 . . . . 168 Influence Decreases 1562 | 10 267 . . 60 441 784 Entered New Map 37 | . . . . . 10 27 Time Decay 1249 | 10 267 . . 60 431 481 Lost Part 126 | . . . . . . 126 Purge Threat 150 | . . . . . . 150 Squads Dispatched 18 | . 1 . . . 3 14 Investigation 5 | . 1 . . . 2 2 Extermination 3 | . . . . . . 3 Reinforcement 4 | . . . . . 1 3 Assault . | . . . . . . . Garrison 6 | . . . . . . 6 Intercept . | . . . . . . . Searches Triggered . | . . . . . . . Construction Impeded 1 | . . . . . 1 . Haulers Reinforced . | . . . . . . . Active Scanning Responses . | . . . . . . . Cargo Convoy Interrupts . | . . . . . . . Stealth | -11 -10 -10 -10 -9 -8 -7 --------- Run | Yrd Mat Min Exi Min Mat Fac Distress Signals 7 | . 2 . . . 2 3 Communications Jammed . | . . . . . . . Distress Signals . | . . . . . . . Times Spotted 77 | . 7 . . 3 20 47 Peak Tracking Total 7 | . 3 . . 3 4 7 Tactical Retreats 11 | . 1 . . . . 10 Traps | -11 -10 -10 -10 -9 -8 -7 ------- Run | Yrd Mat Min Exi Min Mat Fac Traps Triggered 10 | . 1 . . . 2 7 Indirectly . | . . . . . . . Trap Hack Attempts . | . . . . . . . Triggered . | . . . . . . . Disarmed . | . . . . . . . Reprogrammed . | . . . . . . . Reused . | . . . . . . . Traps Extracted . | . . . . . . . Installed . | . . . . . . . Triggered . | . . . . . . . Machines | -11 -10 -10 -10 -9 -8 -7 ---------- Run | Yrd Mat Min Exi Min Mat Fac Machines Disabled 3 | . . . . . . 3 Max in Single Turn 1 | . . . . . . 1 Garrison Access 1 | . . . . . . 1 Machines Repaired . | . . . . . . . Machines Dismantled . | . . . . . . . Machines Sabotaged . | . . . . . . . Overloaded Fab Kills . | . . . . . . . Hacking | -11 -10 -10 -10 -9 -8 -7 --------- Run | Yrd Mat Min Exi Min Mat Fac Machines Accessed 26 | . 8 . 1 . 7 10 Terminals 17 | . 6 . . . 5 6 Fabricators 1 | . . . . . . 1 Repair Stations 1 | . . . . . . 1 Recycling Units 4 | . 2 . . . 1 1 Scanalyzers 1 | . . . . . 1 . Garrison Access 1 | . . . . . . 1 Total Hacks 67 | . 21 . 1 . 20 25 Successful 41 | . 13 . 1 . 14 13 Failed 26 | . 8 . . . 6 12 Catastrophic 1 | . . . . . . 1 Database Lockouts . | . . . . . . . Manual 40 | . 11 . 1 . 15 13 Terminals 49 | . 17 . . . 15 17 Fabricators 2 | . . . . . . 2 Repair Stations 2 | . . . . . . 2 Recycling Units 9 | . 4 . . . 2 3 Scanalyzers 3 | . . . . . 3 . Garrison Access 1 | . . . . . . 1 Terminal Hacks 14 | . 5 . 1 . 3 5 Prototype ID Bank 1 | . 1 . . . . . Open DSF 1 | . . . . . . 1 Branch Access Points 2 | . 1 . . . . 1 Unreport Threat 1 | . . . . . . 1 Dispatch Records 3 | . 1 . . . 1 1 Transport Status 1 | . 1 . . . . . Recall Reinforcements 1 | . . . . . . 1 Hauler Manifests 3 | . 1 . . . 2 . Proto ID Catalog 1 | . . . 1 . . . Fabricator Hacks . | . . . . . . . Repair Station Hacks 2 | . . . . . . 2 Scan Component 1 | . . . . . . 1 Repair 1 | . . . . . . 1 Recycling Unit Hacks 5 | . 2 . . . 1 2 Report Inventory 3 | . 1 . . . 1 1 Retrieve Matter 1 | . . . . . . 1 Retrieve Components 1 | . 1 . . . . . Scanalyzer 3 | . . . . . 3 . Insert Component 2 | . . . . . 2 . Analyze 1 | . . . . . 1 . Garrison Access Hacks 1 | . . . . . . 1 Seal Access 1 | . . . . . . 1 Unauthorized Hacks 16 | . 6 . . . 7 3 Terminals 14 | . 5 . . . 6 3 Botnet 3 | . 1 . . . 1 1 Skim 11 | . 4 . . . 5 2 Fabricators . | . . . . . . . Repair Stations . | . . . . . . . Recycling Units 2 | . 1 . . . 1 . Tunnel 2 | . 1 . . . 1 . Scanalyzers . | . . . . . . . Garrison Access . | . . . . . . . Data Cores Recovered 1 | . . . . . 1 . Used . | . . . . . . . Hacking Detections 22 | . 7 . . . 7 8 Full Trace Events . | . . . . . . . Feedback Events . | . . . . . . . Feedback Blocked . | . . . . . . . Robot Schematics Acquired . | . . . . . . . Robots Built . | . . . . . . . Authchips . | . . . . . . . Time . | . . . . . . . Total Robot Build Rating . | . . . . . . . Part Schematics Acquired 1 | . . . . . 1 . Parts Built . | . . . . . . . Authchips . | . . . . . . . Time . | . . . . . . . Total Part Build Rating . | . . . . . . . Parts Repaired 1 | . . . . . . 1 Time 16 | . . . . . . 16 Parts Recycled . | . . . . . . . Recycled Matter . | . . . . . . . Retrieved Matter . | . . . . . . . Retrieved Components 2 | . 2 . . . . . Parts Scanalyzed 1 | . . . . . 1 . Part Schematics Acquired 1 | . . . . . 1 . Parts Damaged . | . . . . . . . Bothacking | -11 -10 -10 -10 -9 -8 -7 ------------ Run | Yrd Mat Min Exi Min Mat Fac Used RIF Installer . | . . . . . . . Robots Hacked . | . . . . . . . Non-combat . | . . . . . . . Combat . | . . . . . . . Robot Hacks Applied . | . . . . . . . Relay Couplers Released . | . . . . . . . Fabnet Peak Effective % . | . . . . . . . Robots Rewired . | . . . . . . . Allies Hacked . | . . . . . . . Hacks Repelled . | . . . . . . . Allies | -11 -10 -10 -10 -9 -8 -7 -------- Run | Yrd Mat Min Exi Min Mat Fac Total Allies . | . . . . . . . Largest Group . | . . . . . . . Highest-Rated Group . | . . . . . . . Highest-Rated Ally . | . . . . . . . Total Orders . | . . . . . . . Ally Attacks . | . . . . . . . Total Damage . | . . . . . . . Kills . | . . . . . . . Allies Corrupted . | . . . . . . . Allies Melted . | . . . . . . . Intel | -11 -10 -10 -10 -9 -8 -7 ------- Run | Yrd Mat Min Exi Min Mat Fac Active Infowar (turns) 3011 | . 437 143 389 41 1540 461 Sensors 2 | . . . . 2 . . Structural 3009 | . 437 143 389 39 1540 461 Robot Analysis Total . | . . . . . . . Derelict Logs Recovered . | . . . . . . . Drone Launches . | . . . . . . . Drone Recoveries . | . . . . . . . Exploration | -11 -10 -10 -10 -9 -8 -7 ------------- Run | Yrd Mat Min Exi Min Mat Fac Turns Passed 4969 | 51 739 143 389 315 1540 1792 Spaces Moved 3196 | 27 398 88 242 136 675 1630 Core 10 | . . . . . . 10 Treads 1694 | . 365 88 242 136 675 188 Legs 254 | 27 33 . . . . 194 Wheels . | . . . . . . . Hover 1238 | . . . . . . 1238 Flight . | . . . . . . . Fastest Speed 38 | 120 120 160 160 160 160 38 Average Speed 127 | 120 156 160 160 205 188 81 Slowest Speed 350 | 120 160 160 160 240 243 350 Overloaded Moves . | . . . . . . . Propulsion Burnouts . | . . . . . . . Robots Hopped . | . . . . . . . Potential Cave-ins . | . . . . . . . Cave-ins Triggered . | . . . . . . . Exploration Rate (%) 40 | 3 73 17 62 42 45 41 Regions Visited 6 Branch Regions 3 Pre-discovered Areas 3 | . 1 . . . 2 . Known Exits Taken 2 | . 1 . . . 1 . Unknown Exits Taken 4 | 1 . 1 1 1 . . Scrap Searched 1 | . . 1 . . . . Spaces Dug 28 | . 8 . . . 3 17 Terrain Destroyed 203 | . 37 . . . 50 116 Melee 8 | . . . . . 3 5 Projectile 10 | . 7 . . . 3 . AOE 185 | . 30 . . . 44 111 Terrain Rammed . | . . . . . . . Walls Destroyed . | . . . . . . . Machines Disabled . | . . . . . . . Actions | -11 -10 -10 -10 -9 -8 -7 --------- Run | Yrd Mat Min Exi Min Mat Fac Total 3739 | 36 466 90 244 158 837 1908 Wait 125 | . 2 2 . 4 23 94 Move 3190 | 26 397 87 241 135 674 1630 Hop . | . . . . . . . Pick Up 45 | 1 11 1 1 1 19 11 Fast Attach 31 | . 6 . . 3 6 16 Attach 14 | . . . . . 4 10 Detach 13 | . 4 . . 3 3 3 Swap 39 | 1 8 . 1 1 19 9 Drop 60 | 3 11 . 1 3 21 21 Fire 128 | 5 26 . . 7 52 38 Melee 85 | . . . . . 11 74 Ram 1 | . . . . . . 1 Kick . | . . . . . . . Crush 8 | . 1 . . 1 5 1 Escape Stasis . | . . . . . . . Rewire . | . . . . . . . Trap . | . . . . . . . Miscellaneous . | . . . . . . . Route ------- -11/Scrapyard -10/Materials -10/Mines -10/Exiles -9/Mines -8/Materials (discovered 3 exits: *Fac x3) -7/Factory (discovered 7 exits: *Fac x4 / *Sto / *Low x2) History --------- Turn | Location | Event 20 | -11/Scrapyard | Discovered new exit (range 3) 52 | -11/Scrapyard | Entered Materials 238 | -10/Materials | Identified exit to Mines 314 | -10/Materials | Build established: Mutant 791 | -10/Materials | Entered Mines 803 | -10/Mines | YI-UF0 nonchalantly dropped a Grenade Launcher on the ground 907 | -10/Mines | Assembled infested the area 926 | -10/Mines | Deemed a non-threat by the Exiles lab entrance 926 | -10/Mines | Discovered new exit (range 6) 934 | -10/Mines | Entered Exiles 973 | -10/Exiles | Met 8R-AWN 1002 | -10/Exiles | Met EX-HEX 1051 | -10/Exiles | Met EX-BIN 1070 | -10/Exiles | Aligned with FarCom system 1072 | -10/Exiles | Given EX-Vault access code 1109 | -10/Exiles | Opened EX-Vault 1122 | -10/Exiles | Found 0b10 Alert Chip 1155 | -10/Exiles | Warned to stay clear of 0b10 Research branches 1201 | -10/Exiles | Met EX-DEC 1309 | -10/Exiles | Discovered new exit (range 11) 1323 | -10/Exiles | Left Exiles lab with 0b10 Alert Chip 1323 | -10/Exiles | Entered Mines 1359 | -9/Mines | Found a damaged Exp. Sensor Array with a note attached 1362 | -9/Mines | Found Prototype Device 1362 | -9/Mines | Identified Exp. Sensor Array 1381 | -9/Mines | Met a Derelict bent on vengeance 1617 | -9/Mines | Discovered new exit (range 7) 1624 | -9/Mines | Received a Rocket Launcher from a helpful Derelict 1638 | -9/Mines | Entered Materials 1638 | -8/Materials | Evolved 4 slots: Propulsion x1, Utility x3 2214 | -8/Materials | Discovered new exit (range 3) 2543 | -8/Materials | Build established: Skirmisher 2705 | -8/Materials | Identified exit to Factory 2807 | -8/Materials | Learned Storage trap positions 2869 | -8/Materials | Learned location of 1 exit from Recycling 2911 | -8/Materials | Learned location of 1 exit from Recycling 2948 | -8/Materials | Learned Factory stockpile data 3178 | -8/Materials | Entered Factory 3178 | -7/Factory | Evolved 2 slots: Propulsion x1, Utility x1 3179 | -7/Factory | Identified exit to Factory 3327 | -7/Factory | Discovered new exit (range 16) 3450 | -7/Factory | Discovered new exit (range 16) 3479 | -7/Factory | Identified exit to Storage 3479 | -7/Factory | Identified exit to Lower Caves 3520 | -7/Factory | Build established: Hacker-Scout 3523 | -7/Factory | Repaired Rocket Launcher 3821 | -7/Factory | Lost 4 parts (2n1u1w) 3911 | -7/Factory | Build established: Hacker-Mutant 4067 | -7/Factory | Lost 3 parts (3n) 4559 | -7/Factory | Core integrity fell below 50% 4589 | -7/Factory | Core integrity fell below 20% 4605 | -7/Factory | Lost 4 parts (1p2u1w) 4674 | -7/Factory | Garrison activated, responded to threat 4970 | -7/Factory | Destroyed by G-47 Trooper with Particle Gun Last Messages --------------- 04838_ System corrupted: Gatling Laser misfires. 04838_ K-01 Serf destroyed. 04858_ Acquired Transmission Jammer. 04894_ LB:GT6RJE G XA6NJ#OWHWZM 04905_ Acquired Xenon Bombardment Thruster. 04915_ System corrupted: Matter fused (-7). 04929_ Triggered Alarm Trap. 04929_ An alarm sounds. 04929_ ALERT: Alarm triggered, dispatching investigation squad. 04930_ Connecting with Fabricator... 04941_ U-05 Engineer lays Concrete. 04951_ Lgt. Treads destroyed. 04957_ G-47 Trooper overheating. 04960_ Unknown Leg melted. 04960_ G-47 Trooper destroyed. 04960_ Switching to secondary target: G-47 Trooper. 04966_ Particle Gun melted. 04966_ G-47 Trooper destroyed. Map ----- +----------------------------------------------------+ | # # ######+#############??????????? | | #[ + + ### ??????????? | | ###+## # ????????????????????????????? | | # # # ????????????????????????????? | | #"" # + ????????????????????????????? | | #"T # ####### ????????????????????????????? | | #"" # ####### ????????????????????????????? | | # + ##??????????????????????????????????? | | # # ##??????????????????????????????????? | | # # ##??????????????????????????????????? | | #! # ##??????????????=???????????????????? | | # # ##??????????????????????????????????? | | ###### ????????????????????????????????????? | | ###### ????????????????????????????????????? | | ????## ????????????????????????????????????? | | ?????? ????????????????????????????????????? | | ?????? ????????????????????????????????????? | | ?????? ??????????????????????????????????### | | ??????